Cogmind - Beta 13 @@@ ROGUE MODE // 2024.04.04 @ 17:39:53 Player: GingerCyclops Result: Destroyed by G-34 Mercenary with Small Laser Performance ------------- Evolutions (0) 0 Regions Visited (1) 200 Robots Destroyed (15) 75 Value Destroyed (274) 274 Prototype IDs (0) 0 Alien Tech Used (0) 0 Bonus (0) 0 TOTAL SCORE: 549 Bonus ------- None Cogmind --------- Core Integrity 0/250 Matter 194/400 Energy 100/100 System Corruption 6% Temperature Cool (6) Movement Core (200) Ox3 Location -10/Materials Parts ------- > --- POWER (1) -------- (None) > --- PROPULSION (2) --- (None) > --- UTILITY (2) ------ Small Storage Unit Medium Matter Pod > --- WEAPON (2) ------- Grenade Launcher > --- INVENTORY (8) ---- Light Ion Engine Aluminum Leg Aluminum Leg Medium Matter Pod (0) Medium Laser Assault Rifle Assault Rifle Peak State ------------ > --- POWER ------------ Ion Engine > --- PROPULSION ------- Aluminum Leg Aluminum Leg > --- UTILITY ---------- Small Storage Unit ECM Suite > --- WEAPON ----------- Medium Laser Assault Rifle > --- INVENTORY -------- Light Ion Engine Aluminum Leg Aluminum Leg Assault Rifle Grenade Launcher [Rating: 7] Favorites ----------- Power Ion Engine Engine Ion Engine Propulsion Aluminum Leg Leg Aluminum Leg Utility Small Storage Unit Device ECM Suite Storage Small Storage Unit Weapon Medium Laser Energy Gun Medium Laser Ballistic Gun Assault Rifle Launcher Grenade Launcher Build | -11 -10 ------- Run | Yrd Mat Slots Evolved . | . . Power . | . . Propulsion . | . . Utility . | . . Weapon . | . . Parts Attached 12 | 6 6 Power 2 | 1 1 Engine 2 | 1 1 Core . | . . Reactor . | . . Propulsion 2 | 2 . Treads . | . . Leg 2 | 2 . Wheel . | . . Hover . | . . Flight . | . . Utility 3 | . 3 Device 1 | . 1 Storage 2 | . 2 Processor . | . . Hackware . | . . Protection . | . . Artifact . | . . Weapon 5 | 3 2 Energy Gun 1 | 1 . Energy Cannon . | . . Ballistic Gun 2 | 2 . Ballistic Cannon . | . . Launcher 2 | . 2 Special Weapon . | . . Impact Weapon . | . . Slashing Weapon . | . . Piercing Weapon . | . . Special Melee Weapon . | . . Unidentified Prototypes . | . . Parts Lost 4 | . 4 Power 1 | . 1 Propulsion 2 | . 2 Utility . | . . Weapon 1 | . 1 Highest Loss Streak 4 | . 4 To Critical Strikes . | . . Average Slot Usage (%) 82 | . 82 Engine 14 | . 14 Leg 28 | . 28 Device 2 | . 2 Storage 10 | . 10 Energy Gun 12 | . 12 Ballistic Gun 8 | . 8 Launcher 6 | . 6 Naked Turns . | . . Heaviest Build 18 | 7 18 Greatest Support 20 | 20 20 Greatest Overweight (x) . | . . Average Overweight (x) . | . . Largest Inventory Capacity 8 | 5 8 Average Capacity 5 | 5 6 Most Carried 8 | 3 8 Average Carried 3 | . 4 Final Capacity 8 | 5 8 Final Carried 7 | 3 7 Class Distribution -------------------- 100% | Mutant Dominant Class ---------------- Mutant | -10/Materials Resources | -11 -10 ----------- Run | Yrd Mat Matter Collected 376 | 265 111 Remotely . | . . Salvage Created 284 | 64 220 Parts 28 | 4 24 Haulers Intercepted . | . . Recyclers Shooed . | . . Parts Field Recycled . | . . Retrieved Matter . | . . Parts Self-Destructed . | . . Prevented . | . . Kills | -11 -10 ------- Run | Yrd Mat Combat Hostiles Destroyed 8 | 1 7 Guns 4 | 1 3 AOE 4 | . 4 Classes Destroyed 7 | 2 5 Worker 2 | . 2 Builder 2 | . 2 Tunneler 1 | 1 . Recycler 1 | . 1 Watcher 1 | . 1 Swarmer 3 | . 3 Grunt 5 | 1 4 Best Kill Streak 6 | 2 6 Combat Bots Only 4 | 1 4 Max Kills in Single Turn 2 | 1 2 Gunslinging 1 | . 1 Exploded 1 | . 1 Melee . | . . Uniques/NPCs Destroyed . | . . Combat | -11 -10 -------- Run | Yrd Mat Hostile Shots Fired 42 | 5 37 Missed 10 | 1 9 Damage Taken 733 | 45 688 Core 258 | 10 248 Absorbed by Shields . | . . Core Remaining (%) 96 | 96 . Volleys Fired 25 | 5 20 Largest 2 | 2 2 Hottest 80 | 70 80 Shots Fired 45 | 10 35 Gun 30 | 10 20 Cannon . | . . Launcher 15 | . 15 Special . | . . Kinetic 14 | 5 9 Thermal 16 | 5 11 Explosive 15 | . 15 Electromagnetic . | . . Robot Hit Streak 11 | 5 11 Robot Miss Streak 2 | 1 2 Penetration Max . | . . Secondary Targets 1 | . 1 Max Gunslinging Chain 1 | . 1 Shots Hit Robots 29 | 7 22 Core Hits 25 | 3 22 Critical Kills . | . . Critical Parts Destroyed . | . . Critical Strikes 1 | . 1 Burn 1 | . 1 Melee Attacks . | . . Impact . | . . Slashing . | . . Piercing . | . . Sneak Attacks . | . . Combat Hostiles . | . . Follow-up Attacks . | . . Damage Inflicted 985 | 97 888 Guns 254 | 92 162 Cannons . | . . Explosions 726 | . 726 Melee . | . . Ramming 5 | 5 . Kinetic 131 | 42 89 Thermal 123 | 50 73 Explosive 726 | . 726 Electromagnetic . | . . Impact . | . . Slashing . | . . Piercing . | . . Highest Corruption . | . . Average Corruption . | . . Corruption Purged . | . . Corruption Blocked . | . . Overload Shots . | . . Overflow Damage . | . . Projectiles . | . . Explosions . | . . Melee . | . . Knockbacks . | . . Impact . | . . Kinetic . | . . Secondary . | . . Self-Inflicted Damage 25 | . 25 Shots 2 | . 2 Rammed . | . . Targets Rammed 3 | 3 . Kicked 3 | 3 . Crushed . | . . Highest Temperature 60 | 60 36 Average Temperature 18 | 27 14 Received Heat Transfer 168 | 24 144 Siege Activations . | . . Robots Corrupted . | . . Combat Hostiles . | . . Parts Fried . | . . Impact Corruptions . | . . Robots Melted . | . . Combat Hostiles . | . . Parts Melted 1 | 1 . Heat Transferred 444 | 148 296 Parts Sabotaged . | . . Parts Stolen . | . . Parts Stripped . | . . Power Chain Reactions . | . . Alert | -11 -10 ------- Run | Yrd Mat Peak Influence 305 | 25 305 Initial 16 | . 16 Average 70 | 4 108 Maximum Alert Level 1 | . 1 Low Security (%) 92 | 100 87 Level 1 7 | . 12 Level 2 . | . . Level 3 . | . . Level 4 . | . . Level 5 . | . . High Security . | . . Max Security . | . . Squads Dispatched 1 | . 1 Investigation 1 | . 1 Extermination . | . . Reinforcement . | . . Assault . | . . Garrison . | . . Intercept . | . . Searches Triggered . | . . Construction Impeded . | . . Haulers Reinforced . | . . Active Scanning Responses . | . . Cargo Convoy Interrupts . | . . Stealth | -11 -10 --------- Run | Yrd Mat Distress Signals 1 | . 1 Communications Jammed . | . . Distress Signals . | . . Times Spotted 11 | 1 10 Peak Tracking Total 5 | 1 5 Tactical Retreats 1 | . 1 Traps | -11 -10 ------- Run | Yrd Mat Traps Triggered 1 | . 1 Indirectly . | . . Trap Hack Attempts . | . . Triggered . | . . Disarmed . | . . Reprogrammed . | . . Reused . | . . Traps Extracted . | . . Installed . | . . Triggered . | . . Machines | -11 -10 ---------- Run | Yrd Mat Machines Disabled 2 | . 2 Max in Single Turn 1 | . 1 Machines Repaired . | . . Machines Dismantled . | . . Machines Sabotaged . | . . Overloaded Fab Kills . | . . Hacking | -11 -10 --------- Run | Yrd Mat Machines Accessed 1 | . 1 Terminals 1 | . 1 Fabricators . | . . Repair Stations . | . . Recycling Units . | . . Scanalyzers . | . . Garrison Access . | . . Total Hacks 2 | . 2 Successful 2 | . 2 Failed . | . . Catastrophic . | . . Database Lockouts . | . . Manual . | . . Terminals 2 | . 2 Fabricators . | . . Repair Stations . | . . Recycling Units . | . . Scanalyzers . | . . Garrison Access . | . . Terminal Hacks 2 | . 2 Alert Level 1 | . 1 Unreport Threat 1 | . 1 Fabricator Hacks . | . . Repair Station Hacks . | . . Recycling Unit Hacks . | . . Scanalyzer . | . . Garrison Access Hacks . | . . Unauthorized Hacks . | . . Terminals . | . . Fabricators . | . . Repair Stations . | . . Recycling Units . | . . Scanalyzers . | . . Garrison Access . | . . Data Cores Recovered . | . . Used . | . . Hacking Detections . | . . Full Trace Events . | . . Feedback Events . | . . Feedback Blocked . | . . Robot Schematics Acquired . | . . Robots Built . | . . Authchips . | . . Time . | . . Total Robot Build Rating . | . . Part Schematics Acquired . | . . Parts Built . | . . Authchips . | . . Time . | . . Total Part Build Rating . | . . Parts Repaired . | . . Time . | . . Parts Recycled . | . . Recycled Matter . | . . Retrieved Matter . | . . Retrieved Components . | . . Parts Scanalyzed . | . . Part Schematics Acquired . | . . Parts Damaged . | . . Bothacking | -11 -10 ------------ Run | Yrd Mat Used RIF Installer . | . . Robots Hacked . | . . Non-combat . | . . Combat . | . . Robot Hacks Applied . | . . Relay Couplers Released . | . . Fabnet Peak Effective % . | . . Robots Rewired . | . . Allies Hacked . | . . Hacks Repelled . | . . Allies | -11 -10 -------- Run | Yrd Mat Total Allies . | . . Largest Group . | . . Highest-Rated Group . | . . Highest-Rated Ally . | . . Total Orders . | . . Ally Attacks . | . . Total Damage . | . . Kills . | . . Allies Corrupted . | . . Allies Melted . | . . Intel | -11 -10 ------- Run | Yrd Mat Robot Analysis Total . | . . Derelict Logs Recovered . | . . Drone Launches . | . . Drone Recoveries . | . . Exploration | -11 -10 ------------- Run | Yrd Mat Turns Passed 324 | 117 207 Spaces Moved 187 | 78 109 Core 22 | 22 . Treads . | . . Legs 165 | 56 109 Wheels . | . . Hover . | . . Flight . | . . Fastest Speed 50 | 50 120 Average Speed 111 | 100 120 Slowest Speed 120 | 120 120 Overloaded Moves . | . . Propulsion Burnouts . | . . Robots Hopped . | . . Cave-ins Triggered 1 | . 1 Exploration Rate (%) 15 | 6 25 Regions Visited 1 Branch Regions . Pre-discovered Areas . | . . Known Exits Taken . | . . Unknown Exits Taken 1 | 1 . Scrap Searched . | . . Spaces Dug . | . . Terrain Destroyed 60 | . 60 Melee . | . . Projectile . | . . AOE 60 | . 60 Terrain Rammed . | . . Walls Destroyed . | . . Machines Disabled . | . . Actions | -11 -10 --------- Run | Yrd Mat Total 256 | 105 151 Wait 12 | 6 6 Move 186 | 77 109 Hop . | . . Pick Up 16 | 8 8 Fast Attach . | . . Attach 8 | 5 3 Detach . | . . Swap 4 | 1 3 Drop 2 | . 2 Fire 25 | 5 20 Melee . | . . Ram . | . . Kick 3 | 3 . Crush . | . . Escape Stasis . | . . Rewire . | . . Trap . | . . Miscellaneous . | . . Route ------- -11/Scrapyard -10/Materials (discovered 1 exit: [*Mat]) History --------- Turn | Location | Event 2 | -11/Scrapyard | Met Revision 17 77 | -11/Scrapyard | Discovered new exit (range 8) 118 | -11/Scrapyard | Entered Materials 283 | -10/Materials | Discovered new exit (range 3) 313 | -10/Materials | Build established: Mutant 325 | -10/Materials | Crushed by falling debris 325 | -10/Materials | Core integrity fell below 50% 325 | -10/Materials | Core integrity fell below 20% 325 | -10/Materials | Destroyed by G-34 Mercenary with Small Laser Last Messages --------------- extended periods. Tunneling a short distance between rooms is safe unless the area was destabilized by an explosion. G-34 Mercenary destroyed. Processing Tank disabled. U-05 Engineer destroyed. U-05 Engineer builds a Wall. R-06 Scavenger collects ECM Suite. [Achievement: Crack Shot] G-34 Mercenary destroyed. U-05 Engineer builds a Wall. The unstable cave ceiling collapses. Crushed by falling debris. [Achievement: Unlikely Earthworm] Aluminum Leg destroyed. System corrupted by crushing effect (+1). Ion Engine destroyed. System corrupted by crushing effect (+4). Aluminum Leg destroyed. System corrupted by crushing effect (+1). Map ----- +----------------------------------------------------+ | | | | | | | | | ####??????????????????????????????????? | | ?????????????????????????????????? | | """ #????????????????????????????????? | | """ #????????????????????????????????? | | """ #?????#??????????????????????????? | | #???? #??????????????????????????? | | #########+########/##?????????????????? | | ^ ! #?????????????????? | | ^ #?????????????????? | | % #####?????????????? | | ### ########## ##########???? | | ??# ########## # = #???? | | ??# ## [ #???? | | ??+ ## ! [ < #???? | | ??# ^ ## ! r " #???? | | ??# * ## ! " #???? | | ??# % [ ## ! ! * "" ""#???? | | ??# = + %= %=g " T"#???? | | ??# [! ## ! " ""#???? | | ??# ^ ## #???? | | ??# ######### ######???? | | ??# #???????# @##??????????? | | ?# # # #??????????? | | ?# !! #? # #??????????? | | ?# ## +? #??????????? | | =% ?# #? ## ##??????????? | | =??# #??+####### ##???????????? | | ???# ???????? a ????????????? | | " ????# ??????? ????????????? | | " ????# ????? #????????????? | | ?????# ##????###### ?????????????? | | ??????# #??????????# ?????????????? | | ??????# ???????????# ?????????????? | | ??????# ???????????# ??????????????? | | ??????? ???????????# ??????????????? | | ?????????????????????# ??????????????? | | ??????????????????????? ??????????????? | | ??????????????????????????????????????? | | ??????????????????????????????????????? | | ??????????????????????????????????????? | | ??????????????????????????????????????? | | ??????????????????????????????????????? | | ??????????????????????????????????????? | | ??????????????????????????????????????? | | ??????????????????????????????????????? | | ??????????????????????????????????????? | +----------------------------------------------------+ Best States ------------- Heat Dissipation 25 Energy Generation 10 Energy Capacity 250 Matter Stores 324 Matter Capacity 400 Sight Range 16 Terrain Scan Density 10 ECM Strength 1 Evasion (%) 55 Item Schematics ----------------- None Robot Schematics ------------------ None Fabricated ------------ Nothing Alien Tech Used ----------------- None Achievements -------------- Crack Shot Everything Is Under Control Unlikely Earthworm Challenges ------------ None Game ------ Seed ArmoredHardcellSpoofer Manual? 0 Play Time 00:08:20 Cumulative 1.3 hours Start 2024.04.04 @ 17:32:56 End 2024.04.04 @ 17:39:53 Sessions 1 Manual Loads 0 Difficulty Rogue Special Mode None Game No. 3 Rogue 3 Adventurer 0 Explorer 0 Win Type - Total 0 Types 0/0/0/0/0/0/0/0/0 Lore% 1 Gallery% 3 Achievement% 4 Wizard Run 0 Options --------- Layout 1 ASCII 0 Keyboard 0 Movement Mouse Keybinds 0 Fullscreen 2 Font 24/Smallcaps Map View 50x35 Zoom Use 0% Tactical HUD 0 Map Filters NONE Filters NONE Steam 1 RUN: 02042aa2-d205-413f-aef6-74a18aa391c7